[Event "Titled Tuesday Blitz July 4 Late 2023"]
[White "Manukian, Artak"]
[Black "Tqebuchava, Zurab"]
[WhiteFideId "13301373"]
[BlackFideId "13601113"]
[WhiteElo "2425"]
[BlackElo "2071"]
[Result "1-0"]
[Round "2"]
[TimeControl "180+2"]
[Date "2023.07.04"]
[WhiteClock "0:00:18"]
[BlackClock "0:00:00"]
[Board "184"]

1. e4 {[%clk 0:02:59]}  d6 {[%clk 0:02:59]} 2. d4 {[%clk 0:02:59]}  g6 {[%clk 0:02:59]} 3. c4 {[%clk 0:02:58]}  Bg7 {[%clk 0:02:56]} 4. Nc3 {[%clk 0:02:58]}  Nc6 {[%clk 0:02:49]} 5. Be3 {[%clk 0:02:57]}  e5 {[%clk 0:02:48]} 6. d5 {[%clk 0:02:57]}  Nd4 {[%clk 0:02:44]} 7. Nge2 {[%clk 0:02:57]}  Nxe2 {[%clk 0:02:43]} 8. Bxe2 {[%clk 0:02:57]}  f5 {[%clk 0:02:42]} 9. f3 {[%clk 0:02:53]}  Nf6 {[%clk 0:02:41]} 10. Qd2 {[%clk 0:02:53]}  fxe4 {[%clk 0:02:25]} 11. fxe4 {[%clk 0:02:48]}  O-O {[%clk 0:02:23]} 12. O-O-O {[%clk 0:02:47]}  a5 {[%clk 0:02:20]} 13. h3 {[%clk 0:02:40]}  a4 {[%clk 0:02:19]} 14. g4 {[%clk 0:02:35]}  a3 {[%clk 0:02:17]} 15. b4 {[%clk 0:02:34]}  Bd7 {[%clk 0:01:58]} 16. Kc2 {[%clk 0:02:27]}  Kh8 {[%clk 0:01:56]} 17. Kb3 {[%clk 0:02:25]}  Qe8 {[%clk 0:01:41]} 18. b5 {[%clk 0:02:20]}  b6 {[%clk 0:01:24]} 19. Rdf1 {[%clk 0:02:00]}  Qe7 {[%clk 0:01:21]} 20. Bh6 {[%clk 0:01:56]}  Ng8 {[%clk 0:01:17]} 21. Bg5 {[%clk 0:01:51]}  Bf6 {[%clk 0:01:13]} 22. h4 {[%clk 0:01:50]}  Bxg5 {[%clk 0:01:05]} 23. hxg5 {[%clk 0:01:50]}  Rxf1 {[%clk 0:01:04]} 24. Rxf1 {[%clk 0:01:37]}  Rf8 {[%clk 0:01:01]} 25. Rxf8 {[%clk 0:01:32]}  Qxf8 {[%clk 0:01:01]} 26. Qe3 {[%clk 0:01:32]}  Qc8 {[%clk 0:00:42]} 27. Qf3 {[%clk 0:01:31]}  Kg7 {[%clk 0:00:39]} 28. Kxa3 {[%clk 0:01:28]}  Qa8+ {[%clk 0:00:36]} 29. Kb3 {[%clk 0:01:26]}  Qd8 {[%clk 0:00:36]} 30. Qe3 {[%clk 0:01:23]}  Qc8 {[%clk 0:00:35]} 31. Qg3 {[%clk 0:01:09]}  Qd8 {[%clk 0:00:34]} 32. Qh4 {[%clk 0:00:57]}  Qf8 {[%clk 0:00:30]} 33. Qg3 {[%clk 0:00:52]}  Qd8 {[%clk 0:00:29]} 34. Qe3 {[%clk 0:00:50]}  Qc8 {[%clk 0:00:28]} 35. a4 {[%clk 0:00:44]}  Bxg4 {[%clk 0:00:27]} 36. Bxg4 {[%clk 0:00:44]}  Qxg4 {[%clk 0:00:27]} 37. Na2 {[%clk 0:00:36]}  Qd1+ {[%clk 0:00:25]} 38. Ka3 {[%clk 0:00:33]}  Qf1 {[%clk 0:00:24]} 39. Qc3 {[%clk 0:00:28]}  Qf4 {[%clk 0:00:20]} 40. a5 {[%clk 0:00:27]}  bxa5 {[%clk 0:00:19]} 41. Qxa5 {[%clk 0:00:28]}  Qxg5 {[%clk 0:00:17]} 42. Qxc7+ {[%clk 0:00:27]}  Qe7 {[%clk 0:00:16]} 43. Qxe7+ {[%clk 0:00:18]}  Nxe7 {[%clk 0:00:16]} 44. b6 {[%clk 0:00:19]}  Nc8 {[%clk 0:00:09]} 45. b7 {[%clk 0:00:19]}  Nb6 {[%clk 0:00:08]} 46. b8=Q {[%clk 0:00:18]}  Nxc4+ {[%clk 0:00:00]} 47. Kb4 {[%clk 0:00:18]} 1-0


[Site "https://www.chess.com"]

[Event "Titled Tuesday Blitz July 4 Late 2023"]
[White "Bueno, Alfeu Junior Varela"]
[Black "Graham, Nathaniel"]
[WhiteFideId "2108879"]
[BlackFideId "2007983"]
[WhiteElo "2421"]
[BlackElo "2056"]
[Result "1-0"]
[Round "2"]
[TimeControl "180+2"]
[Date "2023.07.04"]
[WhiteClock "0:00:37"]
[BlackClock "0:00:00"]
[Board "186"]

1. e4 {[%clk 0:03:00]}  c5 {[%clk 0:02:57]} 2. Nc3 {[%clk 0:03:01]}  e6 {[%clk 0:02:58]} 3. f4 {[%clk 0:03:01]}  d5 {[%clk 0:02:57]} 4. e5 {[%clk 0:03:02]}  f6 {[%clk 0:02:55]} 5. Nf3 {[%clk 0:03:00]}  Nc6 {[%clk 0:02:54]} 6. Nh4 {[%clk 0:02:59]}  fxe5 {[%clk 0:02:16]} 7. Qh5+ {[%clk 0:02:57]}  g6 {[%clk 0:02:05]} 8. Nxg6 {[%clk 0:02:54]}  Nf6 {[%clk 0:02:04]} 9. Qh4 {[%clk 0:02:54]}  hxg6 {[%clk 0:01:59]} 10. Qxh8 {[%clk 0:02:55]}  exf4 {[%clk 0:01:54]} 11. Bb5 {[%clk 0:02:54]}  Kf7 {[%clk 0:01:49]} 12. Bxc6 {[%clk 0:02:43]}  bxc6 {[%clk 0:01:48]} 13. O-O {[%clk 0:02:44]}  e5 {[%clk 0:01:40]} 14. Qh4 {[%clk 0:02:36]}  Bf5 {[%clk 0:01:30]} 15. d3 {[%clk 0:02:34]}  Bg7 {[%clk 0:01:22]} 16. g3 {[%clk 0:02:27]}  fxg3 {[%clk 0:01:13]} 17. hxg3 {[%clk 0:02:26]}  Qd7 {[%clk 0:00:50]} 18. g4 {[%clk 0:01:36]}  Rh8 {[%clk 0:00:43]} 19. Qg3 {[%clk 0:01:32]}  Bxg4 {[%clk 0:00:41]} 20. Qxe5 {[%clk 0:01:25]}  Bh3 {[%clk 0:00:32]} 21. Rf4 {[%clk 0:01:22]}  Rh5 {[%clk 0:00:14]} 22. Qe2 {[%clk 0:00:45]}  Rg5+ {[%clk 0:00:13]} 23. Kh2 {[%clk 0:00:45]}  Rg2+ {[%clk 0:00:13]} 24. Qxg2 {[%clk 0:00:46]}  Bxg2 {[%clk 0:00:13]} 25. Kxg2 {[%clk 0:00:47]}  Kg8 {[%clk 0:00:06]} 26. Bd2 {[%clk 0:00:47]}  Nh5 {[%clk 0:00:06]} 27. Rh4 {[%clk 0:00:45]}  Qf5 {[%clk 0:00:03]} 28. Rf1 {[%clk 0:00:43]}  Qe5 {[%clk 0:00:00]} 29. Re1 {[%clk 0:00:37]} 1-0


[Site "https://www.chess.com"]

[Event "Titled Tuesday Blitz July 4 Late 2023"]
[White "Govender, Kaedan"]
[Black "Romero Ruscalleda, Josep"]
[WhiteFideId "14322072"]
[BlackFideId "2231859"]
[WhiteElo "2050"]
[BlackElo "2420"]
[Result "0-1"]
[Round "2"]
[TimeControl "180+2"]
[Date "2023.07.04"]
[WhiteClock "0:00:14"]
[BlackClock "0:00:39"]
[Board "187"]

1. d4 {[%clk 0:03:00]}  g6 {[%clk 0:03:00]} 2. c4 {[%clk 0:02:59]}  Bg7 {[%clk 0:03:01]} 3. Nf3 {[%clk 0:02:59]}  d6 {[%clk 0:03:01]} 4. g3 {[%clk 0:02:59]}  Nf6 {[%clk 0:03:00]} 5. Bg2 {[%clk 0:02:59]}  O-O {[%clk 0:03:00]} 6. O-O {[%clk 0:03:00]}  Bf5 {[%clk 0:02:59]} 7. b3 {[%clk 0:03:00]}  Nc6 {[%clk 0:02:58]} 8. Bb2 {[%clk 0:03:00]}  Qd7 {[%clk 0:02:52]} 9. Re1 {[%clk 0:02:57]}  Rad8 {[%clk 0:02:48]} 10. Nbd2 {[%clk 0:02:45]}  Ne4 {[%clk 0:02:45]} 11. Nh4 {[%clk 0:02:35]}  Nxd2 {[%clk 0:02:35]} 12. Nxf5 {[%clk 0:02:28]}  Nxc4 {[%clk 0:02:23]} 13. Nxg7 {[%clk 0:02:07]}  Nxb2 {[%clk 0:02:22]} 14. Qd2 {[%clk 0:02:06]}  Kxg7 {[%clk 0:02:06]} 15. d5 {[%clk 0:02:01]}  Nb8 {[%clk 0:01:59]} 16. Qxb2+ {[%clk 0:02:00]}  Kg8 {[%clk 0:01:59]} 17. Rac1 {[%clk 0:01:57]}  c5 {[%clk 0:01:59]} 18. e4 {[%clk 0:01:50]}  b5 {[%clk 0:01:57]} 19. e5 {[%clk 0:01:47]}  Qf5 {[%clk 0:01:49]} 20. e6 {[%clk 0:01:24]}  fxe6 {[%clk 0:01:47]} 21. dxe6 {[%clk 0:01:25]}  Na6 {[%clk 0:01:45]} 22. Re4 {[%clk 0:01:20]}  Nb4 {[%clk 0:01:39]} 23. Rd1 {[%clk 0:01:09]}  a5 {[%clk 0:01:00]} 24. Rf4 {[%clk 0:00:40]}  Qg5 {[%clk 0:00:56]} 25. Rh4 {[%clk 0:00:25]}  Qf6 {[%clk 0:00:40]} 26. h3 {[%clk 0:00:14]}  Qxb2 {[%clk 0:00:39]} 0-1


[Site "https://www.chess.com"]

[Event "Titled Tuesday Blitz July 4 Late 2023"]
[White "Sainz Aguirre, Ignacio"]
[Black "Melikhov, Evgeny V."]
[WhiteFideId "5101727"]
[BlackFideId "4122046"]
[WhiteElo "1946"]
[BlackElo "2409"]
[Result "0-1"]
[Round "2"]
[TimeControl "180+2"]
[Date "2023.07.04"]
[WhiteClock "0:00:00"]
[BlackClock "0:01:44"]
[Board "193"]

1. e4 {[%clk 0:02:58]}  c5 {[%clk 0:02:59]} 2. Nf3 {[%clk 0:02:57]}  d6 {[%clk 0:02:59]} 3. Bb5+ {[%clk 0:02:56]}  Nd7 {[%clk 0:02:58]} 4. c3 {[%clk 0:02:55]}  a6 {[%clk 0:02:56]} 5. Ba4 {[%clk 0:02:51]}  b5 {[%clk 0:02:54]} 6. Bc2 {[%clk 0:02:50]}  Bb7 {[%clk 0:02:54]} 7. O-O {[%clk 0:02:49]}  e6 {[%clk 0:02:54]} 8. Re1 {[%clk 0:02:49]}  g5 {[%clk 0:02:54]} 9. d4 {[%clk 0:02:30]}  g4 {[%clk 0:02:53]} 10. Nfd2 {[%clk 0:02:18]}  h5 {[%clk 0:02:51]} 11. Nf1 {[%clk 0:02:11]}  Bh6 {[%clk 0:02:37]} 12. Nbd2 {[%clk 0:02:03]}  Ngf6 {[%clk 0:02:25]} 13. a4 {[%clk 0:01:47]}  Qc7 {[%clk 0:02:18]} 14. axb5 {[%clk 0:01:45]}  axb5 {[%clk 0:02:18]} 15. Rxa8+ {[%clk 0:01:45]}  Bxa8 {[%clk 0:02:18]} 16. d5 {[%clk 0:01:28]}  h4 {[%clk 0:02:03]} 17. dxe6 {[%clk 0:01:26]}  fxe6 {[%clk 0:02:03]} 18. e5 {[%clk 0:01:22]}  Nxe5 {[%clk 0:01:57]} 19. Rxe5 {[%clk 0:01:01]}  dxe5 {[%clk 0:01:57]} 20. Bg6+ {[%clk 0:01:01]}  Ke7 {[%clk 0:01:52]} 21. Ne3 {[%clk 0:00:52]}  Bxe3 {[%clk 0:01:49]} 22. fxe3 {[%clk 0:00:51]}  h3 {[%clk 0:01:45]} 23. g3 {[%clk 0:00:00]}  Qc6 {[%clk 0:01:44]} 0-1


[Site "https://www.chess.com"]

[Event "Titled Tuesday Blitz July 4 Late 2023"]
[White "Carrasco Miranda, Andres"]
[Black "Burke, Paul"]
[WhiteFideId "3405990"]
[BlackFideId "2605767"]
[WhiteElo "2408"]
[BlackElo "1929"]
[Result "1-0"]
[Round "2"]
[TimeControl "180+2"]
[Date "2023.07.04"]
[WhiteClock "0:01:43"]
[BlackClock "0:01:53"]
[Board "194"]

1. d4 {[%clk 0:02:55]}  a6 {[%clk 0:02:59]} 2. a4 {[%clk 0:02:53]}  d6 {[%clk 0:02:59]} 3. g3 {[%clk 0:02:50]}  g6 {[%clk 0:03:00]} 4. Bg2 {[%clk 0:02:51]}  h6 {[%clk 0:03:00]} 5. Nf3 {[%clk 0:02:51]}  Bg7 {[%clk 0:03:00]} 6. O-O {[%clk 0:02:52]}  Bd7 {[%clk 0:03:00]} 7. c4 {[%clk 0:02:51]}  Nf6 {[%clk 0:02:57]} 8. Nc3 {[%clk 0:02:51]}  O-O {[%clk 0:02:56]} 9. a5 {[%clk 0:02:51]}  Qc8 {[%clk 0:02:56]} 10. e4 {[%clk 0:02:50]}  Bh3 {[%clk 0:02:55]} 11. Re1 {[%clk 0:02:50]}  Bxg2 {[%clk 0:02:55]} 12. Kxg2 {[%clk 0:02:51]}  Nbd7 {[%clk 0:02:50]} 13. e5 {[%clk 0:02:49]}  Nh7 {[%clk 0:02:39]} 14. e6 {[%clk 0:02:44]}  fxe6 {[%clk 0:02:37]} 15. Rxe6 {[%clk 0:02:45]}  Ne5 {[%clk 0:02:31]} 16. Rxe5 {[%clk 0:02:11]}  dxe5 {[%clk 0:02:28]} 17. dxe5 {[%clk 0:02:09]}  Qf5 {[%clk 0:02:19]} 18. Nd5 {[%clk 0:02:08]}  Rae8 {[%clk 0:02:12]} 19. Nxc7 {[%clk 0:01:49]}  Bxe5 {[%clk 0:02:11]} 20. Nxe8 {[%clk 0:01:46]}  Rxe8 {[%clk 0:02:03]} 21. Qd5+ {[%clk 0:01:45]}  e6 {[%clk 0:02:03]} 22. Qxe5 {[%clk 0:01:45]}  Qc2 {[%clk 0:01:53]} 23. Bxh6 {[%clk 0:01:43]} 1-0


[Site "https://www.chess.com"]

[Event "Titled Tuesday Blitz July 4 Late 2023"]
[White "Erigaisi Arjun"]
[Black "Ghazarian, Kirk"]
[WhiteFideId "35009192"]
[BlackFideId "30908604"]
[WhiteElo "3151"]
[BlackElo "2739"]
[Result "1/2-1/2"]
[Round "3"]
[TimeControl "180+2"]
[Date "2023.07.04"]
[WhiteClock "0:00:07"]
[BlackClock "0:00:06"]
[Board "2"]

1. c4 {[%clk 0:02:55]}  e6 {[%clk 0:02:59]} 2. g3 {[%clk 0:02:55]}  d5 {[%clk 0:02:58]} 3. Bg2 {[%clk 0:02:56]}  Nf6 {[%clk 0:02:59]} 4. Nf3 {[%clk 0:02:56]}  dxc4 {[%clk 0:02:58]} 5. Qa4+ {[%clk 0:02:54]}  Bd7 {[%clk 0:02:57]} 6. Qxc4 {[%clk 0:02:54]}  c5 {[%clk 0:02:57]} 7. Ne5 {[%clk 0:02:53]}  Qc8 {[%clk 0:02:56]} 8. O-O {[%clk 0:02:52]}  Nc6 {[%clk 0:02:54]} 9. Nxd7 {[%clk 0:02:51]}  Qxd7 {[%clk 0:02:52]} 10. b3 {[%clk 0:02:50]}  Be7 {[%clk 0:02:51]} 11. Bb2 {[%clk 0:02:48]}  O-O {[%clk 0:02:51]} 12. d3 {[%clk 0:02:47]}  Rac8 {[%clk 0:02:49]} 13. Nd2 {[%clk 0:02:45]}  Nd4 {[%clk 0:02:45]} 14. Rfe1 {[%clk 0:02:44]}  Rfd8 {[%clk 0:02:42]} 15. Rad1 {[%clk 0:02:43]}  b5 {[%clk 0:02:38]} 16. Qc1 {[%clk 0:02:42]}  Nd5 {[%clk 0:02:38]} 17. e3 {[%clk 0:02:39]}  Nc6 {[%clk 0:02:33]} 18. a3 {[%clk 0:02:36]}  h6 {[%clk 0:02:10]} 19. Ne4 {[%clk 0:02:36]}  Na5 {[%clk 0:02:08]} 20. Qc2 {[%clk 0:02:35]}  Qc7 {[%clk 0:02:02]} 21. h4 {[%clk 0:02:31]}  Nf6 {[%clk 0:01:55]} 22. Nxf6+ {[%clk 0:02:19]}  Bxf6 {[%clk 0:01:56]} 23. Bxf6 {[%clk 0:02:19]}  gxf6 {[%clk 0:01:57]} 24. Qc3 {[%clk 0:02:18]}  Kg7 {[%clk 0:01:53]} 25. Rc1 {[%clk 0:02:15]}  Qb6 {[%clk 0:01:49]} 26. b4 {[%clk 0:02:13]}  cxb4 {[%clk 0:01:47]} 27. Qxb4 {[%clk 0:02:14]}  Rxc1 {[%clk 0:01:30]} 28. Rxc1 {[%clk 0:02:15]}  Rxd3 {[%clk 0:01:30]} 29. Bf1 {[%clk 0:01:24]}  Rd5 {[%clk 0:01:15]} 30. Rc8 {[%clk 0:01:22]}  Rd8 {[%clk 0:01:13]} 31. Rxd8 {[%clk 0:01:22]}  Qxd8 {[%clk 0:01:14]} 32. Qxb5 {[%clk 0:01:23]}  Qc7 {[%clk 0:01:06]} 33. a4 {[%clk 0:01:14]}  Nb7 {[%clk 0:01:03]} 34. Qb4 {[%clk 0:01:14]}  a5 {[%clk 0:00:55]} 35. Qg4+ {[%clk 0:01:11]}  Kf8 {[%clk 0:00:56]} 36. Qd4 {[%clk 0:01:09]}  Qe5 {[%clk 0:00:43]} 37. Qb6 {[%clk 0:01:06]}  Nd6 {[%clk 0:00:41]} 38. Bd3 {[%clk 0:00:52]}  Kg7 {[%clk 0:00:33]} 39. Qc6 {[%clk 0:00:50]}  Nf5 {[%clk 0:00:26]} 40. Kg2 {[%clk 0:00:45]}  Qb2 {[%clk 0:00:20]} 41. Bxf5 {[%clk 0:00:44]}  exf5 {[%clk 0:00:21]} 42. Qc4 {[%clk 0:00:31]}  Qb4 {[%clk 0:00:20]} 43. Qf4 {[%clk 0:00:31]}  Kg6 {[%clk 0:00:11]} 44. Kf3 {[%clk 0:00:25]}  Qc5 {[%clk 0:00:09]} 45. Qd4 {[%clk 0:00:24]}  Qc6+ {[%clk 0:00:08]} 46. Ke2 {[%clk 0:00:22]}  Qc2+ {[%clk 0:00:08]} 47. Kf1 {[%clk 0:00:21]}  Qc1+ {[%clk 0:00:09]} 48. Kg2 {[%clk 0:00:22]}  Qc6+ {[%clk 0:00:10]} 49. Kh2 {[%clk 0:00:22]}  Qc2 {[%clk 0:00:08]} 50. Qf4 {[%clk 0:00:21]}  Kg7 {[%clk 0:00:07]} 51. Kg1 {[%clk 0:00:19]}  Qc1+ {[%clk 0:00:07]} 52. Kg2 {[%clk 0:00:20]}  Qc6+ {[%clk 0:00:07]} 53. Kh2 {[%clk 0:00:20]}  Qc2 {[%clk 0:00:07]} 54. h5 {[%clk 0:00:21]}  Kh7 {[%clk 0:00:06]} 55. Kh3 {[%clk 0:00:18]}  Kg7 {[%clk 0:00:06]} 56. g4 {[%clk 0:00:17]}  fxg4+ {[%clk 0:00:05]} 57. Qxg4+ {[%clk 0:00:18]}  Kh7 {[%clk 0:00:05]} 58. f3 {[%clk 0:00:17]}  Qc1 {[%clk 0:00:04]} 59. Qe4+ {[%clk 0:00:13]}  Kg7 {[%clk 0:00:05]} 60. Kg2 {[%clk 0:00:10]}  Qd2+ {[%clk 0:00:05]} 61. Kh3 {[%clk 0:00:08]}  Qc1 {[%clk 0:00:05]} 62. Qg4+ {[%clk 0:00:08]}  Kh7 {[%clk 0:00:06]} 63. Qe4+ {[%clk 0:00:07]}  Kg7 {[%clk 0:00:06]} 1/2-1/2


[Site "https://www.chess.com"]

[Event "Titled Tuesday Blitz July 4 Late 2023"]
[White "Mahdavi, Reza"]
[Black "Naroditsky, Daniel"]
[WhiteFideId "12595926"]
[BlackFideId "2026961"]
[WhiteElo "2739"]
[BlackElo "3146"]
[Result "1/2-1/2"]
[Round "3"]
[TimeControl "180+2"]
[Date "2023.07.04"]
[WhiteClock "0:01:07"]
[BlackClock "0:01:09"]
[Board "3"]

1. e4 {[%clk 0:02:54]}  Nf6 {[%clk 0:03:00]} 2. e5 {[%clk 0:02:55]}  Nd5 {[%clk 0:03:01]} 3. d4 {[%clk 0:02:54]}  d6 {[%clk 0:03:01]} 4. c4 {[%clk 0:02:55]}  Nb6 {[%clk 0:03:02]} 5. exd6 {[%clk 0:02:56]}  exd6 {[%clk 0:03:03]} 6. Nc3 {[%clk 0:02:56]}  Be7 {[%clk 0:03:03]} 7. Bd3 {[%clk 0:02:54]}  O-O {[%clk 0:03:03]} 8. Nge2 {[%clk 0:02:54]}  c6 {[%clk 0:03:00]} 9. O-O {[%clk 0:02:51]}  Na6 {[%clk 0:03:01]} 10. b3 {[%clk 0:02:51]}  d5 {[%clk 0:03:00]} 11. c5 {[%clk 0:02:48]}  Nd7 {[%clk 0:03:00]} 12. Bf4 {[%clk 0:02:45]}  b6 {[%clk 0:02:47]} 13. cxb6 {[%clk 0:02:36]}  axb6 {[%clk 0:02:47]} 14. Rc1 {[%clk 0:02:37]}  Re8 {[%clk 0:02:20]} 15. Qd2 {[%clk 0:02:30]}  Nf8 {[%clk 0:02:15]} 16. Ng3 {[%clk 0:02:21]}  Ne6 {[%clk 0:01:55]} 17. Be3 {[%clk 0:02:19]}  Nb4 {[%clk 0:01:43]} 18. Bb1 {[%clk 0:02:18]}  c5 {[%clk 0:01:38]} 19. Nf5 {[%clk 0:02:12]}  Bf6 {[%clk 0:01:38]} 20. Rfd1 {[%clk 0:02:03]}  Nc6 {[%clk 0:01:22]} 21. Nb5 {[%clk 0:01:20]}  Ncxd4 {[%clk 0:01:10]} 22. Nbxd4 {[%clk 0:01:16]}  Nxd4 {[%clk 0:01:10]} 23. Nxd4 {[%clk 0:01:14]}  cxd4 {[%clk 0:01:11]} 24. Bxd4 {[%clk 0:01:07]}  Be6 {[%clk 0:01:09]} 1/2-1/2


[Site "https://www.chess.com"]

[Event "Titled Tuesday Blitz July 4 Late 2023"]
[White "Nihal Sarin"]
[Black "Fernandez Guillen, Ernesto J."]
[WhiteFideId "25092340"]
[BlackFideId "3512428"]
[WhiteElo "3128"]
[BlackElo "2730"]
[Result "1-0"]
[Round "3"]
[TimeControl "180+2"]
[Date "2023.07.04"]
[WhiteClock "0:00:15"]
[BlackClock "0:00:02"]
[Board "4"]

1. d4 {[%clk 0:03:00]}  Nf6 {[%clk 0:02:55]} 2. c4 {[%clk 0:03:01]}  e6 {[%clk 0:02:54]} 3. Nf3 {[%clk 0:03:01]}  Bb4+ {[%clk 0:02:54]} 4. Nbd2 {[%clk 0:02:59]}  O-O {[%clk 0:02:53]} 5. a3 {[%clk 0:02:59]}  Bxd2+ {[%clk 0:02:54]} 6. Qxd2 {[%clk 0:03:00]}  b6 {[%clk 0:02:54]} 7. e3 {[%clk 0:03:00]}  Bb7 {[%clk 0:02:55]} 8. Be2 {[%clk 0:03:01]}  d6 {[%clk 0:02:56]} 9. O-O {[%clk 0:03:01]}  Nbd7 {[%clk 0:02:56]} 10. b4 {[%clk 0:03:02]}  Qe7 {[%clk 0:02:57]} 11. Bb2 {[%clk 0:03:02]}  Rad8 {[%clk 0:02:55]} 12. a4 {[%clk 0:02:56]}  e5 {[%clk 0:02:27]} 13. d5 {[%clk 0:02:46]}  Ne4 {[%clk 0:02:19]} 14. Qc2 {[%clk 0:02:45]}  f5 {[%clk 0:02:20]} 15. a5 {[%clk 0:02:45]}  Ndf6 {[%clk 0:02:19]} 16. axb6 {[%clk 0:02:43]}  axb6 {[%clk 0:02:20]} 17. Ra7 {[%clk 0:02:44]}  Rb8 {[%clk 0:02:20]} 18. Nd2 {[%clk 0:02:31]}  Nxd2 {[%clk 0:02:13]} 19. Qxd2 {[%clk 0:02:32]}  g5 {[%clk 0:02:11]} 20. f4 {[%clk 0:02:22]}  gxf4 {[%clk 0:02:05]} 21. exf4 {[%clk 0:02:23]}  Ne4 {[%clk 0:01:57]} 22. Qe3 {[%clk 0:02:22]}  b5 {[%clk 0:01:56]} 23. cxb5 {[%clk 0:01:34]}  Bxd5 {[%clk 0:01:50]} 24. b6 {[%clk 0:01:35]}  Rb7 {[%clk 0:01:35]} 25. fxe5 {[%clk 0:00:54]}  dxe5 {[%clk 0:01:18]} 26. Qd3 {[%clk 0:00:52]}  c6 {[%clk 0:01:07]} 27. Rxb7 {[%clk 0:00:31]}  Qxb7 {[%clk 0:01:08]} 28. Qe3 {[%clk 0:00:32]}  Qe7 {[%clk 0:01:01]} 29. h3 {[%clk 0:00:21]}  f4 {[%clk 0:00:46]} 30. Qf3 {[%clk 0:00:21]}  Rf6 {[%clk 0:00:34]} 31. Qg4+ {[%clk 0:00:16]}  Rg6 {[%clk 0:00:26]} 32. Qc8+ {[%clk 0:00:16]}  Kf7 {[%clk 0:00:26]} 33. Bh5 {[%clk 0:00:15]}  Qxb4 {[%clk 0:00:06]} 34. Qc7+ {[%clk 0:00:15]}  Kf8 {[%clk 0:00:05]} 35. Bxg6 {[%clk 0:00:14]}  hxg6 {[%clk 0:00:02]} 36. b7 {[%clk 0:00:15]} 1-0


[Site "https://www.chess.com"]

[Event "Titled Tuesday Blitz July 4 Late 2023"]
[White "Ozer, Omer Faruk"]
[Black "Firouzja, Alireza"]
[WhiteFideId "6354564"]
[BlackFideId "12573981"]
[WhiteElo "2728"]
[BlackElo "3105"]
[Result "1/2-1/2"]
[Round "3"]
[TimeControl "180+2"]
[Date "2023.07.04"]
[WhiteClock "0:00:41"]
[BlackClock "0:00:18"]
[Board "5"]

1. e4 {[%clk 0:03:00]}  c6 {[%clk 0:02:59]} 2. d4 {[%clk 0:02:58]}  d5 {[%clk 0:03:00]} 3. e5 {[%clk 0:02:59]}  Bf5 {[%clk 0:03:00]} 4. Nc3 {[%clk 0:02:58]}  e6 {[%clk 0:03:00]} 5. g4 {[%clk 0:02:58]}  Bg6 {[%clk 0:03:01]} 6. Nge2 {[%clk 0:02:59]}  h5 {[%clk 0:02:57]} 7. Nf4 {[%clk 0:02:55]}  Bh7 {[%clk 0:02:58]} 8. g5 {[%clk 0:02:50]}  Bf5 {[%clk 0:02:51]} 9. Bd3 {[%clk 0:02:32]}  Bxd3 {[%clk 0:02:44]} 10. Qxd3 {[%clk 0:02:33]}  g6 {[%clk 0:02:44]} 11. h4 {[%clk 0:02:23]}  Ne7 {[%clk 0:02:44]} 12. Nce2 {[%clk 0:02:23]}  Nd7 {[%clk 0:02:41]} 13. c3 {[%clk 0:02:20]}  c5 {[%clk 0:02:37]} 14. Be3 {[%clk 0:02:19]}  cxd4 {[%clk 0:02:33]} 15. cxd4 {[%clk 0:02:18]}  Nf5 {[%clk 0:02:32]} 16. Ng3 {[%clk 0:02:17]}  Qa5+ {[%clk 0:02:20]} 17. Bd2 {[%clk 0:02:10]}  Bb4 {[%clk 0:02:07]} 18. Nxf5 {[%clk 0:02:09]}  gxf5 {[%clk 0:02:07]} 19. a3 {[%clk 0:02:02]}  Bxd2+ {[%clk 0:01:54]} 20. Qxd2 {[%clk 0:02:03]}  Qxd2+ {[%clk 0:01:14]} 21. Kxd2 {[%clk 0:02:04]}  Nf8 {[%clk 0:01:15]} 22. Rac1 {[%clk 0:02:01]}  Kd7 {[%clk 0:01:15]} 23. Rc3 {[%clk 0:00:51]}  Rc8 {[%clk 0:01:14]} 24. Rhc1 {[%clk 0:00:49]}  Rxc3 {[%clk 0:01:13]} 25. Rxc3 {[%clk 0:00:50]}  Ng6 {[%clk 0:01:13]} 26. Nxg6 {[%clk 0:00:50]}  fxg6 {[%clk 0:01:14]} 27. f4 {[%clk 0:00:50]}  a5 {[%clk 0:01:11]} 28. Rc5 {[%clk 0:00:48]}  Ra8 {[%clk 0:01:08]} 29. Kd3 {[%clk 0:00:46]}  Ra6 {[%clk 0:01:08]} 30. b3 {[%clk 0:00:45]}  Rb6 {[%clk 0:00:48]} 31. Kc3 {[%clk 0:00:43]}  Ra6 {[%clk 0:00:46]} 32. Kb2 {[%clk 0:00:42]}  Ra8 {[%clk 0:00:45]} 33. Rc3 {[%clk 0:00:39]}  Ra7 {[%clk 0:00:42]} 34. Rc2 {[%clk 0:00:38]}  Ra6 {[%clk 0:00:42]} 35. Rc5 {[%clk 0:00:38]}  Kd8 {[%clk 0:00:27]} 36. Rc2 {[%clk 0:00:36]}  Ra8 {[%clk 0:00:26]} 37. Rc5 {[%clk 0:00:36]}  Kd7 {[%clk 0:00:26]} 38. Rc3 {[%clk 0:00:35]}  b6 {[%clk 0:00:24]} 39. Rc2 {[%clk 0:00:35]}  Rb8 {[%clk 0:00:24]} 40. Rc3 {[%clk 0:00:35]}  Rb7 {[%clk 0:00:15]} 41. Rc2 {[%clk 0:00:35]}  Ra7 {[%clk 0:00:12]} 42. Rc3 {[%clk 0:00:35]}  Ra8 {[%clk 0:00:12]} 43. Rc2 {[%clk 0:00:35]}  Rc8 {[%clk 0:00:11]} 44. Rxc8 {[%clk 0:00:35]}  Kxc8 {[%clk 0:00:12]} 45. a4 {[%clk 0:00:35]}  Kc7 {[%clk 0:00:13]} 46. Kc3 {[%clk 0:00:36]}  Kb7 {[%clk 0:00:13]} 47. Kd3 {[%clk 0:00:36]}  Kc6 {[%clk 0:00:14]} 48. Kc3 {[%clk 0:00:36]}  b5 {[%clk 0:00:14]} 49. Kd3 {[%clk 0:00:37]}  b4 {[%clk 0:00:13]} 50. Kd2 {[%clk 0:00:37]}  Kb6 {[%clk 0:00:14]} 51. Kd3 {[%clk 0:00:37]}  Kb7 {[%clk 0:00:15]} 52. Ke3 {[%clk 0:00:38]}  Kb6 {[%clk 0:00:16]} 53. Kd3 {[%clk 0:00:39]}  Kb7 {[%clk 0:00:17]} 54. Ke3 {[%clk 0:00:40]}  Kb6 {[%clk 0:00:18]} 55. Kd3 {[%clk 0:00:41]} 1/2-1/2


[Site "https://www.chess.com"]